[Event "Early-Titled-Tuesday-Blitz-October-03-2023"]
[Site "Chess.com"]
[Date "2023.10.03"]
[Round "10"]
[White "karinachess1"]
[Black "szachuspl"]
[Result "1-0"]
[WhiteElo "2631"]
[BlackElo "2528"]
[TimeControl "180+1"]
[EndTime "9:57:42 PDT"]
[Termination "karinachess1 won by checkmate"]

1. d4 {[%clk 0:03:00.9]} 1... Nf6 {[%clk 0:02:55.1]} 2. c4 {[%clk 0:03:00.9]}
2... g6 {[%clk 0:02:55.2]} 3. g3 {[%clk 0:03:00.1]} 3... Bg7 {[%clk 0:02:55.8]}
4. Bg2 {[%clk 0:03:00.8]} 4... O-O {[%clk 0:02:56.5]} 5. Nc3 {[%clk 0:03:01.2]}
5... d6 {[%clk 0:02:57.2]} 6. Nf3 {[%clk 0:03:00.9]} 6... Nbd7 {[%clk
0:02:57.6]} 7. O-O {[%clk 0:03:00.8]} 7... e5 {[%clk 0:02:58]} 8. e4 {[%clk
0:03:01.3]} 8... exd4 {[%clk 0:02:54]} 9. Nxd4 {[%clk 0:03:01.2]} 9... Nc5
{[%clk 0:02:54.4]} 10. h3 {[%clk 0:02:49.7]} 10... Re8 {[%clk 0:02:52.5]} 11.
Re1 {[%clk 0:02:47.1]} 11... a5 {[%clk 0:02:52.5]} 12. Qc2 {[%clk 0:02:12.6]}
12... c6 {[%clk 0:02:52.1]} 13. Be3 {[%clk 0:02:10.2]} 13... Nfd7 {[%clk
0:02:49.6]} 14. f4 {[%clk 0:01:59.2]} 14... a4 {[%clk 0:02:42.9]} 15. Rad1
{[%clk 0:01:57.7]} 15... Qa5 {[%clk 0:02:42.5]} 16. Bf2 {[%clk 0:01:53.5]} 16...
Nf6 {[%clk 0:02:35.3]} 17. Kh2 {[%clk 0:01:44.6]} 17... a3 {[%clk 0:02:34.4]}
18. b3 {[%clk 0:01:40.8]} 18... Nfd7 {[%clk 0:02:30.3]} 19. Nde2 {[%clk
0:01:30.8]} 19... Qc7 {[%clk 0:02:17.5]} 20. Bd4 {[%clk 0:01:24.6]} 20... Bxd4
{[%clk 0:02:12.7]} 21. Nxd4 {[%clk 0:01:25]} 21... Na6 {[%clk 0:02:11.1]} 22.
Qf2 {[%clk 0:01:20.8]} 22... Nb4 {[%clk 0:02:08.8]} 23. Nf3 {[%clk 0:01:08.6]}
23... Nc5 {[%clk 0:02:05.6]} 24. Re3 {[%clk 0:01:01.5]} 24... Bd7 {[%clk
0:01:50.1]} 25. Qd2 {[%clk 0:00:56.6]} 25... Rad8 {[%clk 0:01:45.2]} 26. Qxd6
{[%clk 0:00:55.2]} 26... Qb6 {[%clk 0:01:45.6]} 27. Qf6 {[%clk 0:00:49]} 27...
Be6 {[%clk 0:01:28.1]} 28. Rxd8 {[%clk 0:00:46.3]} 28... Qxd8 {[%clk 0:01:28.1]}
29. Qd4 {[%clk 0:00:40.9]} 29... Qxd4 {[%clk 0:01:23.2]} 30. Nxd4 {[%clk
0:00:41.8]} 30... Rd8 {[%clk 0:01:23.6]} 31. Nf3 {[%clk 0:00:30.3]} 31... h6
{[%clk 0:01:11.8]} 32. g4 {[%clk 0:00:30.5]} 32... Ncd3 {[%clk 0:01:00.7]} 33.
f5 {[%clk 0:00:28.4]} 33... Bc8 {[%clk 0:00:59.9]} 34. Re2 {[%clk 0:00:17.6]}
34... Nc1 {[%clk 0:00:52.3]} 35. Rd2 {[%clk 0:00:11.5]} 35... Rxd2 {[%clk
0:00:47.3]} 36. Nxd2 {[%clk 0:00:12.4]} 36... Ncxa2 {[%clk 0:00:46.2]} 37. Nxa2
{[%clk 0:00:13.3]} 37... Nxa2 {[%clk 0:00:46.8]} 38. Nb1 {[%clk 0:00:14]} 38...
Nc1 {[%clk 0:00:47.2]} 39. Nxa3 {[%clk 0:00:14.3]} 39... Nxb3 {[%clk 0:00:47.7]}
40. Kg3 {[%clk 0:00:14.5]} 40... Kg7 {[%clk 0:00:45]} 41. Kf4 {[%clk 0:00:14.6]}
41... g5+ {[%clk 0:00:45.5]} 42. Ke5 {[%clk 0:00:14.7]} 42... Kf8 {[%clk
0:00:26.9]} 43. Kd6 {[%clk 0:00:14.7]} 43... Ke8 {[%clk 0:00:26.6]} 44. Kc7
{[%clk 0:00:12.8]} 44... Bd7 {[%clk 0:00:27]} 45. Kxb7 {[%clk 0:00:13.1]} 45...
Nc5+ {[%clk 0:00:26.4]} 46. Kc7 {[%clk 0:00:13.5]} 46... Nd3 {[%clk 0:00:27.2]}
47. Kd6 {[%clk 0:00:12.7]} 47... f6 {[%clk 0:00:27.7]} 48. Nc2 {[%clk 0:00:12]}
48... Ne5 {[%clk 0:00:27.1]} 49. Bf1 {[%clk 0:00:10.3]} 49... Kf7 {[%clk
0:00:22.4]} 50. Nd4 {[%clk 0:00:09.4]} 50... Be8 {[%clk 0:00:23]} 51. Ne6 {[%clk
0:00:09.2]} 51... Nf3 {[%clk 0:00:21]} 52. Nd8+ {[%clk 0:00:08.5]} 52... Kf8
{[%clk 0:00:20.7]} 53. Nxc6 {[%clk 0:00:09]} 53... Nd2 {[%clk 0:00:19.9]} 54.
Bd3 {[%clk 0:00:09.3]} 54... Nf3 {[%clk 0:00:18.4]} 55. Nd4 {[%clk 0:00:09.4]}
55... Ne5 {[%clk 0:00:18.2]} 56. Bf1 {[%clk 0:00:08.8]} 56... Ba4 {[%clk
0:00:18.9]} 57. c5 {[%clk 0:00:08.8]} 57... Ke8 {[%clk 0:00:18.8]} 58. c6 {[%clk
0:00:08.5]} 58... Kd8 {[%clk 0:00:19.2]} 59. c7+ {[%clk 0:00:09]} 59... Kc8
{[%clk 0:00:08.6]} 60. Ba6# {[%clk 0:00:08.9]} 1-0

[Event "Early-Titled-Tuesday-Blitz-October-03-2023"]
[Site "Chess.com"]
[Date "2023.10.03"]
[Round "10"]
[White "Magila31"]
[Black "DoctorCheckyll"]
[Result "0-1"]
[WhiteElo "2377"]
[BlackElo "2328"]
[TimeControl "180+1"]
[EndTime "9:57:45 PDT"]
[Termination "DoctorCheckyll won on time"]

1. d4 {[%clk 0:02:59.2]} 1... d5 {[%clk 0:02:55.7]} 2. c4 {[%clk 0:02:58.5]}
2... c6 {[%clk 0:02:55.7]} 3. Nf3 {[%clk 0:02:57.8]} 3... Nf6 {[%clk 0:02:56.1]}
4. Nc3 {[%clk 0:02:57.5]} 4... e6 {[%clk 0:02:56.5]} 5. e3 {[%clk 0:02:57]} 5...
Nbd7 {[%clk 0:02:54.8]} 6. Qc2 {[%clk 0:02:56.9]} 6... Bd6 {[%clk 0:02:52.9]} 7.
b3 {[%clk 0:02:54.9]} 7... O-O {[%clk 0:02:51.9]} 8. Bb2 {[%clk 0:02:54.1]} 8...
Qe7 {[%clk 0:02:52.3]} 9. Be2 {[%clk 0:02:53.6]} 9... b6 {[%clk 0:02:49.7]} 10.
O-O {[%clk 0:02:52.7]} 10... Bb7 {[%clk 0:02:49.2]} 11. e4 {[%clk 0:02:51.8]}
11... dxe4 {[%clk 0:02:46.6]} 12. Nxe4 {[%clk 0:02:51.3]} 12... Nxe4 {[%clk
0:02:40.1]} 13. Qxe4 {[%clk 0:02:51]} 13... Nf6 {[%clk 0:02:27]} 14. Qh4 {[%clk
0:02:48.3]} 14... Ba3 {[%clk 0:02:25]} 15. Bc3 {[%clk 0:02:32.7]} 15... Bb4
{[%clk 0:02:25.1]} 16. Rac1 {[%clk 0:02:30.1]} 16... Bxc3 {[%clk 0:02:25]} 17.
Rxc3 {[%clk 0:02:29.5]} 17... c5 {[%clk 0:02:24]} 18. Re3 {[%clk 0:02:15.3]}
18... Bxf3 {[%clk 0:02:08]} 19. Bxf3 {[%clk 0:02:14.2]} 19... cxd4 {[%clk
0:02:07.3]} 20. Qxd4 {[%clk 0:02:12.3]} 20... Rad8 {[%clk 0:02:06.6]} 21. Qc3
{[%clk 0:01:52.3]} 21... Qc5 {[%clk 0:02:02.2]} 22. Re5 {[%clk 0:01:48.5]} 22...
Qd4 {[%clk 0:01:58.4]} 23. Qxd4 {[%clk 0:01:36.1]} 23... Rxd4 {[%clk 0:01:59.3]}
24. Ree1 {[%clk 0:01:02.3]} 24... Rfd8 {[%clk 0:01:59.2]} 25. Rd1 {[%clk
0:01:02.2]} 25... Rd2 {[%clk 0:01:48.5]} 26. Rxd2 {[%clk 0:01:01]} 26... Rxd2
{[%clk 0:01:48.5]} 27. Rd1 {[%clk 0:01:01.3]} 27... Rxd1+ {[%clk 0:01:45.9]} 28.
Bxd1 {[%clk 0:01:01.2]} 28... Kf8 {[%clk 0:01:46.6]} 29. Bf3 {[%clk 0:00:55]}
29... Ke7 {[%clk 0:01:46.8]} 30. Kf1 {[%clk 0:00:55.1]} 30... Kd6 {[%clk
0:01:47.1]} 31. Ke2 {[%clk 0:00:55.3]} 31... Kc5 {[%clk 0:01:46.9]} 32. Kd3
{[%clk 0:00:53]} 32... a5 {[%clk 0:01:46]} 33. a3 {[%clk 0:00:52.3]} 33... Nd7
{[%clk 0:01:44.5]} 34. Kc3 {[%clk 0:00:51.5]} 34... Ne5 {[%clk 0:01:39.7]} 35.
b4+ {[%clk 0:00:51.2]} 35... axb4+ {[%clk 0:01:39.4]} 36. axb4+ {[%clk
0:00:51.5]} 36... Kd6 {[%clk 0:01:39.9]} 37. Be2 {[%clk 0:00:51.6]} 37... f5
{[%clk 0:01:33]} 38. Kb3 {[%clk 0:00:46.8]} 38... g5 {[%clk 0:01:23]} 39. Ka4
{[%clk 0:00:46.7]} 39... Nc6 {[%clk 0:01:11.8]} 40. Bd3 {[%clk 0:00:29.9]} 40...
Nd4 {[%clk 0:01:10.9]} 41. Ka3 {[%clk 0:00:20.3]} 41... e5 {[%clk 0:01:09.4]}
42. Kb2 {[%clk 0:00:19.4]} 42... e4 {[%clk 0:01:09.3]} 43. Bf1 {[%clk
0:00:17.6]} 43... h5 {[%clk 0:01:06.6]} 44. Kc3 {[%clk 0:00:17.7]} 44... Nc6
{[%clk 0:01:00]} 45. g3 {[%clk 0:00:16.1]} 45... g4 {[%clk 0:00:56.2]} 46. h3
{[%clk 0:00:14.8]} 46... Ne5 {[%clk 0:00:52]} 47. Kd4 {[%clk 0:00:15]} 47...
Nf3+ {[%clk 0:00:47.7]} 48. Ke3 {[%clk 0:00:15.2]} 48... Ne5 {[%clk 0:00:41.3]}
49. Kf4 {[%clk 0:00:12.2]} 49... gxh3 {[%clk 0:00:39.5]} 50. Bxh3 {[%clk
0:00:11.6]} 50... Nxc4 {[%clk 0:00:37.3]} 51. Bxf5 {[%clk 0:00:10.7]} 51... Ne5
{[%clk 0:00:23.7]} 52. Bxe4 {[%clk 0:00:10.6]} 52... b5 {[%clk 0:00:21.5]} 53.
Bf3 {[%clk 0:00:10]} 53... Nd3+ {[%clk 0:00:21.2]} 54. Ke3 {[%clk 0:00:09.4]}
54... Nxb4 {[%clk 0:00:21.9]} 55. Bxh5 {[%clk 0:00:09.6]} 55... Kc5 {[%clk
0:00:21]} 56. Bf7 {[%clk 0:00:08.9]} 56... Nc6 {[%clk 0:00:20.6]} 57. f4 {[%clk
0:00:07.3]} 57... Nd4 {[%clk 0:00:20.8]} 58. Kd3 {[%clk 0:00:06.6]} 58... b4
{[%clk 0:00:21]} 59. g4 {[%clk 0:00:06.4]} 59... Nf3 {[%clk 0:00:19.7]} 60. g5
{[%clk 0:00:05.8]} 60... Nh4 {[%clk 0:00:19.7]} 61. Be6 {[%clk 0:00:03.3]} 61...
Ng6 {[%clk 0:00:18.8]} 62. f5 {[%clk 0:00:02.7]} 62... Nf4+ {[%clk 0:00:17.7]}
63. Kc2 {[%clk 0:00:01.1]} 63... Kd6 {[%clk 0:00:14.6]} 64. g6 {[%clk 0:00:01]}
64... Nxe6 {[%clk 0:00:14.7]} 0-1

[Event "Early-Titled-Tuesday-Blitz-October-03-2023"]
[Site "Chess.com"]
[Date "2023.10.03"]
[Round "10"]
[White "pasteta13"]
[Black "Malysch"]
[Result "0-1"]
[WhiteElo "2437"]
[BlackElo "2538"]
[TimeControl "180+1"]
[EndTime "9:57:48 PDT"]
[Termination "Malysch won by resignation"]

1. e4 {[%clk 0:03:00.9]} 1... Nf6 {[%clk 0:03:00.9]} 2. e5 {[%clk 0:03:00.4]}
2... Nd5 {[%clk 0:03:00.7]} 3. d4 {[%clk 0:03:01.1]} 3... d6 {[%clk 0:03:00.4]}
4. c4 {[%clk 0:03:01.7]} 4... Nb6 {[%clk 0:02:59.9]} 5. exd6 {[%clk 0:03:02.4]}
5... cxd6 {[%clk 0:03:00.7]} 6. Nc3 {[%clk 0:03:03]} 6... g6 {[%clk 0:03:01.3]}
7. Bd3 {[%clk 0:03:03.5]} 7... Bg7 {[%clk 0:03:02]} 8. Nge2 {[%clk 0:03:04.1]}
8... O-O {[%clk 0:03:02]} 9. h3 {[%clk 0:03:02.6]} 9... Nc6 {[%clk 0:03:02]} 10.
Be3 {[%clk 0:03:02.3]} 10... Nb4 {[%clk 0:02:57.3]} 11. O-O {[%clk 0:03:01.2]}
11... Nxd3 {[%clk 0:02:56.5]} 12. Qxd3 {[%clk 0:02:53]} 12... Bf5 {[%clk
0:02:55.7]} 13. Ne4 {[%clk 0:02:53.4]} 13... Nxc4 {[%clk 0:02:43]} 14. Qxc4
{[%clk 0:02:53.5]} 14... Bxe4 {[%clk 0:02:42.5]} 15. d5 {[%clk 0:02:54.1]} 15...
Bf5 {[%clk 0:02:39.8]} 16. Bd4 {[%clk 0:02:46.8]} 16... Rc8 {[%clk 0:02:32.4]}
17. Qb3 {[%clk 0:02:46.8]} 17... Qd7 {[%clk 0:01:37.6]} 18. Bxg7 {[%clk
0:02:46.2]} 18... Kxg7 {[%clk 0:01:38.5]} 19. Nd4 {[%clk 0:02:46.4]} 19... Rc5
{[%clk 0:01:35.2]} 20. Nxf5+ {[%clk 0:02:29.2]} 20... gxf5 {[%clk 0:01:35]} 21.
Rad1 {[%clk 0:02:20.8]} 21... Rfc8 {[%clk 0:01:21.3]} 22. Rfe1 {[%clk
0:02:12.5]} 22... R8c7 {[%clk 0:01:03.1]} 23. Qg3+ {[%clk 0:02:06.5]} 23... Kh8
{[%clk 0:01:00.9]} 24. Qg5 {[%clk 0:02:01.2]} 24... Rc2 {[%clk 0:00:31.8]} 25.
Rd3 {[%clk 0:01:58.8]} 25... f6 {[%clk 0:00:20.3]} 26. Qh6 {[%clk 0:01:52.4]}
26... Qe8 {[%clk 0:00:20.1]} 27. Qxf6+ {[%clk 0:01:11.4]} 27... exf6 {[%clk
0:00:21]} 28. Rxe8+ {[%clk 0:01:10.8]} 28... Kg7 {[%clk 0:00:21.9]} 29. Rg3+
{[%clk 0:01:11.1]} 29... Kf7 {[%clk 0:00:18.1]} 30. Rh8 {[%clk 0:01:11.7]} 30...
f4 {[%clk 0:00:13.5]} 31. Rxh7+ {[%clk 0:01:06.1]} 31... Kf8 {[%clk 0:00:13.8]}
32. Rh8+ {[%clk 0:01:06.7]} 32... Kf7 {[%clk 0:00:14.2]} 33. Rg4 {[%clk
0:01:05.7]} 33... f5 {[%clk 0:00:11.6]} 34. Rg5 {[%clk 0:01:02.1]} 34... Kf6
{[%clk 0:00:10.9]} 35. h4 {[%clk 0:01:02.6]} 35... Rxb2 {[%clk 0:00:09.5]} 36.
Re8 {[%clk 0:01:02.5]} 36... Rxa2 {[%clk 0:00:07.2]} 37. Re6+ {[%clk 0:01:02]}
37... Kf7 {[%clk 0:00:07.6]} 38. Rxf5+ {[%clk 0:01:02.5]} 38... Kg7 {[%clk
0:00:08.1]} 39. Rxf4 {[%clk 0:00:37]} 39... Rd7 {[%clk 0:00:07.4]} 40. Rff6
{[%clk 0:00:28.4]} 40... b5 {[%clk 0:00:05.9]} 41. Rxd6 {[%clk 0:00:14.5]} 41...
Rxd6 {[%clk 0:00:06.8]} 42. Rxd6 {[%clk 0:00:14.7]} 42... b4 {[%clk 0:00:07.5]}
43. Rd7+ {[%clk 0:00:10.3]} 43... Kf6 {[%clk 0:00:07.7]} 44. Rb7 {[%clk
0:00:08.6]} 44... a5 {[%clk 0:00:08.3]} 45. h5 {[%clk 0:00:08.4]} 45... Kg5
{[%clk 0:00:07.6]} 46. d6 {[%clk 0:00:05.3]} 46... Rd2 {[%clk 0:00:07.5]} 47.
Rb5+ {[%clk 0:00:04.9]} 47... Kh6 {[%clk 0:00:07.1]} 48. Rxa5 {[%clk 0:00:05.2]}
48... b3 {[%clk 0:00:07]} 49. Rb5 {[%clk 0:00:04.5]} 49... b2 {[%clk 0:00:07.9]}
50. d7 {[%clk 0:00:03.7]} 50... Kg7 {[%clk 0:00:05]} 51. Rxb2 {[%clk 0:00:02.2]}
51... Rxd7 {[%clk 0:00:05.2]} 52. Rb5 {[%clk 0:00:02.3]} 52... Kh6 {[%clk
0:00:06]} 53. g3 {[%clk 0:00:01.7]} 53... Rd3 {[%clk 0:00:06.9]} 54. Kg2 {[%clk
0:00:02.3]} 54... Rc3 {[%clk 0:00:07.5]} 55. Kh3 {[%clk 0:00:02.8]} 55... Rb3
{[%clk 0:00:07.7]} 56. Kg2 {[%clk 0:00:03.5]} 56... Rxb5 {[%clk 0:00:07.8]} 0-1

[Event "Early-Titled-Tuesday-Blitz-October-03-2023"]
[Site "Chess.com"]
[Date "2023.10.03"]
[Round "10"]
[White "BlueWizzard"]
[Black "BardArtem"]
[Result "0-1"]
[WhiteElo "2946"]
[BlackElo "2790"]
[TimeControl "180+1"]
[EndTime "9:57:49 PDT"]
[Termination "BardArtem won on time"]

1. e4 {[%clk 0:03:00.9]} 1... d5 {[%clk 0:02:53.3]} 2. exd5 {[%clk 0:03:00.4]}
2... Qxd5 {[%clk 0:02:54.2]} 3. Nc3 {[%clk 0:03:00]} 3... Qe5+ {[%clk
0:02:54.6]} 4. Nge2 {[%clk 0:02:56.4]} 4... Nf6 {[%clk 0:02:54.4]} 5. d4 {[%clk
0:02:56.5]} 5... Qa5 {[%clk 0:02:54.5]} 6. Bd2 {[%clk 0:02:52.3]} 6... c6 {[%clk
0:02:53.8]} 7. Nf4 {[%clk 0:02:49.2]} 7... Qd8 {[%clk 0:02:51.5]} 8. Be3 {[%clk
0:02:47.4]} 8... Bf5 {[%clk 0:02:51.2]} 9. h3 {[%clk 0:02:46.1]} 9... h6 {[%clk
0:02:50]} 10. g4 {[%clk 0:02:45.7]} 10... Bh7 {[%clk 0:02:50]} 11. h4 {[%clk
0:02:44.3]} 11... Ne4 {[%clk 0:02:41.2]} 12. Bd3 {[%clk 0:02:39]} 12... Nxc3
{[%clk 0:02:34.5]} 13. bxc3 {[%clk 0:02:39.9]} 13... Bxd3 {[%clk 0:02:31.7]} 14.
Qxd3 {[%clk 0:02:38.4]} 14... e6 {[%clk 0:02:25.6]} 15. Rg1 {[%clk 0:02:29.1]}
15... Qxh4 {[%clk 0:02:16.5]} 16. Rb1 {[%clk 0:02:13.6]} 16... Qe7 {[%clk
0:02:15]} 17. Qe4 {[%clk 0:02:04.9]} 17... Qc7 {[%clk 0:02:06]} 18. Kd2 {[%clk
0:01:43.3]} 18... Nd7 {[%clk 0:01:59.7]} 19. g5 {[%clk 0:01:43.5]} 19... O-O-O
{[%clk 0:01:46.1]} 20. Nd3 {[%clk 0:01:40.7]} 20... Nb6 {[%clk 0:01:39.2]} 21.
Rb3 {[%clk 0:01:31]} 21... hxg5 {[%clk 0:01:24.4]} 22. Bxg5 {[%clk 0:01:23.5]}
22... Rd5 {[%clk 0:01:17.2]} 23. Bf4 {[%clk 0:01:13.8]} 23... Bd6 {[%clk
0:00:59.7]} 24. Rxg7 {[%clk 0:01:12.6]} 24... Bxf4+ {[%clk 0:00:40.1]} 25. Nxf4
{[%clk 0:01:06.9]} 25... Rf5 {[%clk 0:00:39.9]} 26. Rg4 {[%clk 0:00:39.9]} 26...
Nd5 {[%clk 0:00:28.5]} 27. Nd3 {[%clk 0:00:37.9]} 27... Nf6 {[%clk 0:00:28.3]}
28. Qg2 {[%clk 0:00:35.9]} 28... Nxg4 {[%clk 0:00:26.5]} 29. Qxg4 {[%clk
0:00:36.8]} 29... Qh2 {[%clk 0:00:22.3]} 30. Kc1 {[%clk 0:00:26.5]} 30... Qh3
{[%clk 0:00:22.3]} 31. Qe4 {[%clk 0:00:25.3]} 31... Qh1+ {[%clk 0:00:22]} 32.
Qxh1 {[%clk 0:00:25.1]} 32... Rxh1+ {[%clk 0:00:22.9]} 33. Kd2 {[%clk
0:00:24.1]} 33... Ra5 {[%clk 0:00:19.6]} 34. c4 {[%clk 0:00:20.6]} 34... Rxa2
{[%clk 0:00:17.3]} 35. Nc5 {[%clk 0:00:20.8]} 35... b6 {[%clk 0:00:16.1]} 36.
Ne4 {[%clk 0:00:21.2]} 36... Raa1 {[%clk 0:00:13.4]} 37. Nd6+ {[%clk 0:00:20.6]}
37... Kc7 {[%clk 0:00:12.3]} 38. Nxf7 {[%clk 0:00:21.5]} 38... Rh2 {[%clk
0:00:12.2]} 39. Rf3 {[%clk 0:00:19.6]} 39... Rf1 {[%clk 0:00:10.6]} 40. Ke2
{[%clk 0:00:19.9]} 40... Rc1 {[%clk 0:00:09.2]} 41. Kd2 {[%clk 0:00:20.3]} 41...
Rf1 {[%clk 0:00:09.4]} 42. Ke2 {[%clk 0:00:20.8]} 42... Ra1 {[%clk 0:00:10.2]}
43. Ng5 {[%clk 0:00:20.6]} 43... Kb7 {[%clk 0:00:07.3]} 44. Nxe6 {[%clk
0:00:19.1]} 44... Ra2 {[%clk 0:00:06.8]} 45. Kd3 {[%clk 0:00:18.1]} 45... Ra3+
{[%clk 0:00:06.7]} 46. c3 {[%clk 0:00:18.7]} 46... Ra2 {[%clk 0:00:06.4]} 47.
Rf7+ {[%clk 0:00:18.7]} 47... Ka6 {[%clk 0:00:06.1]} 48. Nc7+ {[%clk 0:00:17.1]}
48... Ka5 {[%clk 0:00:06.6]} 49. Nd5 {[%clk 0:00:16.1]} 49... a6 {[%clk
0:00:05.6]} 50. Nb4 {[%clk 0:00:14.9]} 50... Raxf2 {[%clk 0:00:05.9]} 51. Nxc6+
{[%clk 0:00:15.3]} 51... Ka4 {[%clk 0:00:05.9]} 52. Ra7 {[%clk 0:00:14.8]} 52...
Kb3 {[%clk 0:00:04.2]} 53. Rxa6 {[%clk 0:00:14.2]} 53... Rf3+ {[%clk 0:00:04.9]}
54. Ke4 {[%clk 0:00:14.7]} 54... Rxc3 {[%clk 0:00:05.6]} 55. Kd5 {[%clk
0:00:13.5]} 55... Rxc4 {[%clk 0:00:04.8]} 56. Rxb6+ {[%clk 0:00:13.1]} 56... Kc3
{[%clk 0:00:05.4]} 57. Ra6 {[%clk 0:00:12.6]} 57... Rh5+ {[%clk 0:00:04.6]} 58.
Ne5 {[%clk 0:00:12.9]} 58... Rxd4+ {[%clk 0:00:04.6]} 59. Ke6 {[%clk 0:00:09.4]}
59... Rh6+ {[%clk 0:00:04.9]} 60. Kf5 {[%clk 0:00:08.9]} 60... Rxa6 {[%clk
0:00:05.8]} 0-1

[Event "Early-Titled-Tuesday-Blitz-October-03-2023"]
[Site "Chess.com"]
[Date "2023.10.03"]
[Round "10"]
[White "Sethu0025"]
[Black "vasblesk"]
[Result "1/2-1/2"]
[WhiteElo "2864"]
[BlackElo "2744"]
[TimeControl "180+1"]
[EndTime "9:57:52 PDT"]
[Termination "Game drawn by repetition"]

1. d4 {[%clk 0:03:00.9]} 1... d5 {[%clk 0:02:59.8]} 2. c4 {[%clk 0:03:00.9]}
2... c6 {[%clk 0:02:59.3]} 3. Nf3 {[%clk 0:03:00.5]} 3... Nf6 {[%clk 0:02:58.3]}
4. e3 {[%clk 0:03:00.6]} 4... e6 {[%clk 0:02:54.8]} 5. Nc3 {[%clk 0:02:58.3]}
5... Nbd7 {[%clk 0:02:53.4]} 6. Bd3 {[%clk 0:02:58.3]} 6... dxc4 {[%clk
0:02:51.8]} 7. Bxc4 {[%clk 0:02:59.2]} 7... b5 {[%clk 0:02:52.3]} 8. Bd3 {[%clk
0:02:59.9]} 8... Bd6 {[%clk 0:02:49.1]} 9. Qc2 {[%clk 0:02:57.3]} 9... Bb7
{[%clk 0:02:47.5]} 10. e4 {[%clk 0:02:57.1]} 10... e5 {[%clk 0:02:47.3]} 11. Bg5
{[%clk 0:02:56.6]} 11... h6 {[%clk 0:02:45.5]} 12. Bh4 {[%clk 0:02:56.1]} 12...
b4 {[%clk 0:02:35.8]} 13. Ne2 {[%clk 0:02:50.8]} 13... c5 {[%clk 0:02:33.4]} 14.
dxe5 {[%clk 0:02:45.1]} 14... Nxe5 {[%clk 0:02:31.2]} 15. Nxe5 {[%clk
0:02:44.9]} 15... Bxe5 {[%clk 0:02:32.1]} 16. f4 {[%clk 0:02:44.8]} 16... Bd4
{[%clk 0:02:24.4]} 17. Nxd4 {[%clk 0:02:28.5]} 17... Qxd4 {[%clk 0:02:23.4]} 18.
Bf2 {[%clk 0:02:28.4]} 18... Qd7 {[%clk 0:02:12.2]} 19. O-O-O {[%clk 0:02:27.9]}
19... O-O {[%clk 0:02:10]} 20. Kb1 {[%clk 0:02:13.8]} 20... c4 {[%clk
0:01:53.1]} 21. Qxc4 {[%clk 0:02:08.3]} 21... Rac8 {[%clk 0:01:50.2]} 22. Qxb4
{[%clk 0:02:07.4]} 22... a5 {[%clk 0:01:50]} 23. Qd4 {[%clk 0:02:01.5]} 23...
Qxd4 {[%clk 0:01:48.4]} 24. Bxd4 {[%clk 0:02:02.4]} 24... Nxe4 {[%clk 0:01:47]}
25. Rhe1 {[%clk 0:02:03]} 25... f5 {[%clk 0:01:46.9]} 26. Bc2 {[%clk 0:01:51.5]}
26... g5 {[%clk 0:01:31.5]} 27. Be5 {[%clk 0:01:49]} 27... Rfd8 {[%clk
0:01:27.5]} 28. Bb3+ {[%clk 0:01:45.8]} 28... Kf8 {[%clk 0:01:25.8]} 29. Be6
{[%clk 0:01:32.9]} 29... Ra8 {[%clk 0:01:08.5]} 30. Bxf5 {[%clk 0:01:29]} 30...
Nd2+ {[%clk 0:01:08.2]} 31. Ka1 {[%clk 0:01:27.9]} 31... Bxg2 {[%clk 0:00:57.9]}
32. Bf6 {[%clk 0:00:59.3]} 32... Rd5 {[%clk 0:00:37.1]} 33. Be6 {[%clk
0:00:58.5]} 33... Rd3 {[%clk 0:00:36.5]} 34. Re2 {[%clk 0:00:49.7]} 34... Ra6
{[%clk 0:00:30.3]} 35. f5 {[%clk 0:00:46.6]} 35... Rxe6 {[%clk 0:00:29.3]} 36.
fxe6 {[%clk 0:00:42.8]} 36... Nb3+ {[%clk 0:00:26.5]} 37. axb3 {[%clk
0:00:42.7]} 37... Rxd1+ {[%clk 0:00:27.4]} 38. Ka2 {[%clk 0:00:43.5]} 38... Bd5
{[%clk 0:00:27.1]} 39. e7+ {[%clk 0:00:33.1]} 39... Ke8 {[%clk 0:00:27.2]} 40.
Rc2 {[%clk 0:00:33.5]} 40... Be6 {[%clk 0:00:25.7]} 41. Rc6 {[%clk 0:00:33.4]}
41... Bd7 {[%clk 0:00:22.5]} 42. Ra6 {[%clk 0:00:31]} 42... Kf7 {[%clk
0:00:22.9]} 43. Bc3 {[%clk 0:00:19.7]} 43... Kxe7 {[%clk 0:00:22.6]} 44. Rxh6
{[%clk 0:00:19.7]} 44... Rd5 {[%clk 0:00:18.8]} 45. Ra6 {[%clk 0:00:17]} 45...
g4 {[%clk 0:00:18.5]} 46. Bxa5 {[%clk 0:00:14.6]} 46... Rh5 {[%clk 0:00:19]} 47.
Bc7 {[%clk 0:00:14.1]} 47... Be6 {[%clk 0:00:18.8]} 48. Ka3 {[%clk 0:00:13]}
48... Rh3 {[%clk 0:00:18.2]} 49. Bg3 {[%clk 0:00:12.6]} 49... Kd7 {[%clk
0:00:18.4]} 50. b4 {[%clk 0:00:12.5]} 50... Rh5 {[%clk 0:00:17.9]} 51. Ka4
{[%clk 0:00:11]} 51... Bc4 {[%clk 0:00:18.3]} 52. Rd6+ {[%clk 0:00:10.9]} 52...
Ke7 {[%clk 0:00:18.5]} 53. b3 {[%clk 0:00:10.2]} 53... Bb5+ {[%clk 0:00:18.1]}
54. Ka3 {[%clk 0:00:10.6]} 54... Bd7 {[%clk 0:00:18.7]} 55. Rb6 {[%clk
0:00:09.9]} 55... Rb5 {[%clk 0:00:18.7]} 56. Rh6 {[%clk 0:00:09.8]} 56... Rf5
{[%clk 0:00:18]} 57. Kb2 {[%clk 0:00:09]} 57... Rf3 {[%clk 0:00:18.2]} 58. Bd6+
{[%clk 0:00:08.1]} 58... Ke8 {[%clk 0:00:17.6]} 59. Bg3 {[%clk 0:00:08]} 59...
Ke7 {[%clk 0:00:16.9]} 60. Rh5 {[%clk 0:00:08.4]} 60... Rf5 {[%clk 0:00:15.8]}
61. Rh7+ {[%clk 0:00:08.1]} 61... Rf7 {[%clk 0:00:16.4]} 62. Rh6 {[%clk
0:00:08.1]} 62... Rf3 {[%clk 0:00:15.9]} 1/2-1/2